[Event "34th GER-ch Seniors-50 2022"]
[Site "Magdeburg"]
[Date "2022.08.20"]
[Round "9.4"]
[White "Heck, Norbert"]
[Black "Hirn, Oskar"]
[Result "1-0"]
[ECO "A09"]
[WhiteElo "2249"]
[BlackElo "2188"]
[Annotator "TA"]
[PlyCount "25"]
[EventDate "2022.08.12"]
[EventType "swiss"]
[EventCountry "GER"]
[SourceTitle "playchess.com"]
[Source "ChessBase"]
[SourceQuality "1"]
[TimeControl "40/5400+30:1800+30"]

{[%evp 9,25,-28,18,-60,-55,-72,-34,-30,119,120,123,134,125,122,110,110,275,263]} 1. Nf3 {[%emt 0:00:07]} d5 {[%emt 0:00:43]} 2. c4 {[%emt 0:00:18]} d4 {[%emt 0:01:48]} 3. g3 {[%emt 0:00:17]} Nc6 {[%emt 0:01:13]} 4. Bg2 {[%emt 0:00:09]} e5 {[%emt 0:00:27]} 5. d3 {[%emt 0:00:16]} Be7 {[%emt 0:01:42] [#]} (5... Bb4+ {is more appropriate.} 6. Nbd2 a5) 6. Nbd2 $146 {[%emt 0:02:29] A09: Réti Opening: 1 Nf3 d5 2 c4.} ({Better is} 6. O-O $1 $11) ({Predecessor:} 6. O-O Nf6 7. b4 Bxb4 8. Nxe5 Nxe5 9. Qa4+ Nc6 10. Bxc6+ bxc6 11. Qxb4 h5 12. Qc5 h4 13. Bb2 hxg3 14. fxg3 Ng4 15. Bxd4 Rxh2 16. Bxg7 {½-½ (35) Zimina,O (2390)-Stefanova,A (2476) Moscow 2019}) 6... a5 $15 {[%emt 0:03:32][%cal Ba7a5,Ba5a4][%mdl 32]} 7. a3 {[%emt 0:00:15]} a4 {[%emt 0:04:34]} 8. b4 {[%emt 0:04:01][%cal Bb2b4,Bb4b5][%mdl 32] Black is slightly better.} Nf6 {[%emt 0:06:51]} (8... axb3 $1 $11 {keeps the balance.} 9. Qxb3 Nf6) 9. b5 $16 {[%emt 0:00:35]} Nb8 {[%emt 0:03:14]} 10. Nxe5 {[%emt 0:01:55]} O-O {[%emt 0:00:31]} 11. O-O {[%emt 0:00:17] White is more active.} Re8 {[%emt 0:00:03]} 12. Nef3 {[%emt 0:00:23]} Nbd7 $2 {[%emt 0:00:12] [#]} (12... Bc5 $16) 13. Nxd4 {[%emt 0:01:24] Weighted Error Value: White=0.26 (precise) /Black=0.52} ({Don't take} 13. Bb2 Nc5 14. Nxd4 (14. Bxd4 Bf5 $18) 14... Bd6 $18) 1-0

[Event "34th GER-ch Seniors-50 2022"]
[Site "Magdeburg"]
[Date "2022.08.20"]
[Round "9.5"]
[White "Schatz, Christian"]
[Black "Brandes, Stephan"]
[Result "1/2-1/2"]
[ECO "C41"]
[WhiteElo "2137"]
[BlackElo "2123"]
[Annotator "TA"]
[PlyCount "146"]
[EventDate "2022.08.12"]
[EventType "swiss"]
[EventCountry "GER"]
[SourceTitle "playchess.com"]
[Source "ChessBase"]
[SourceQuality "1"]
[TimeControl "40/5400+30:1800+30"]

{[%evp 10,146,47,41,42,25,26,23,45,22,27,18,23,39,61,50,50,39,52,59,54,33,33,33,42,16,67,61,112,110,127,119,127,116,133,126,162,161,162,154,130,131,121,71,71,78,84,89,82,82,82,82,82,82,82,66,82,82,82,77,108,108,149,140,164,131,166,154,188,188,188,188,175,108,108,108,108,108,108,108,108,108,108,108,108,108,108,108,108,108,108,108,108,108,108,108,108,108,108,108,108,108,108,108,108,108,108,108,108,108,108,108,108,108,108,108,108,0,0,0,0,0,0,0,0,0,0,0,0,0,0,0,0,0,0,0,0,0,0]} 1. e4 {[%emt 0:00:02]} d6 {[%emt 0:07:34]} 2. d4 {[%emt 0:00:30]} Nf6 {[%emt 0:00:08]} 3. Nc3 {[%emt 0:01:22]} Nbd7 {[%emt 0:01:02]} 4. Nf3 {[%emt 0:02:56]} e5 {[%emt 0:01:07]} 5. Bc4 {[%emt 0:00:44]} h6 {[%emt 0:02:21]} 6. h3 {[%emt 0:03:01]} Be7 {[%emt 0:01:28] C41: Philidor Defence.} 7. Be3 {[%emt 0:00:50]} c6 {[%emt 0:00:30]} 8. a4 {[%emt 0:01:05]} Qc7 {[%emt 0:00:55] White has an edge.} (8... Nxe4 {keeps more tension.} 9. Nxe4 d5 10. O-O O-O) 9. Bb3 {[%emt 0:01:39] [#]} exd4 $146 {[%emt 0:06:00]} ({Predecessor:} 9... Nf8 10. Qb1 Ng6 11. Qa2 O-O 12. Rd1 b6 13. g4 Nh7 14. Ne2 d5 15. exd5 exd4 16. Nfxd4 cxd5 {0-1 (52) Koziorowicz,M (2274)-Bebel,A (2294) Bydgoszcz 2021}) 10. Qxd4 {[%emt 0:05:17]} O-O {[%emt 0:06:34]} 11. Bf4 {[%emt 0:03:19]} c5 {[%emt 0:14:52]} 12. Qd3 {[%emt 0:08:56] White is much more active. The black rooks are badly placed.} Ne5 {[%emt 0:06:23]} 13. Bxe5 {[%emt 0:04:19]} dxe5 {[%emt 0:00:27]} 14. O-O {[%emt 0:01:09]} Rd8 {[%emt 0:05:31]} 15. Nd5 {[%emt 0:02:34]} ({Don't play} 15. Qc4 Be6 16. Qe2 c4 $17) 15... Nxd5 {[%emt 0:07:19]} 16. Bxd5 {[%emt 0:01:22]} Be6 {[%emt 0:08:11]} 17. c4 {[%emt 0:01:19]} Bxd5 {[%emt 0:17:33]} (17... Bd7 $11) 18. cxd5 $14 {[%emt 0:01:15]} Bd6 {[%emt 0:00:50]} (18... c4 $14 19. Rfc1 Rac8) 19. Nd2 $16 {[%emt 0:03:30]} Qe7 {[%emt 0:02:53]} 20. Nc4 {[%emt 0:01:43]} Rf8 {[%emt 0:00:47]} 21. Rfe1 {[%emt 0:01:10]} Rae8 {[%emt 0:00:40]} 22. Re3 {[%emt 0:01:29]} f5 {[%emt 0:08:25]} 23. Nxd6 {[%emt 0:02:12]} Qxd6 {[%emt 0:00:00]} 24. exf5 {[%emt 0:00:12]} Qf6 {[%emt 0:00:00]} 25. d6 {[%emt 0:16:11]} Qxf5 {[%emt 0:00:00]} 26. Qxf5 {[%emt 0:02:48]} (26. Qe2 $142) 26... Rxf5 {[%emt 0:00:00][%mdl 4096] Endgame KRR-KRR} 27. Rd1 {[%emt 0:00:21]} Rd8 {[%emt 0:00:00]} 28. g4 {[%emt 0:02:15]} Rf6 {[%emt 0:00:27]} 29. Rxe5 {[%emt 0:04:53]} Rfxd6 {[%emt 0:00:02]} 30. Rxd6 {[%emt 0:00:14]} Rxd6 {[%emt 0:00:01]} 31. Rxc5 {[%emt 0:00:15] KR-KR} Rd4 {[%emt 0:01:57]} 32. b3 {[%emt 0:03:02]} Rd3 {[%emt 0:00:33]} 33. Rb5 {[%emt 0:00:10]} b6 {[%emt 0:00:30]} 34. Kg2 {[%emt 0:00:07]} Kh7 {[%emt 0:00:14]} 35. h4 {[%emt 0:00:42][%cal Bh3h4,Bh4h5][%mdl 32]} Kg6 {[%emt 0:00:09]} 36. f3 {[%emt 0:00:15]} Kf6 {[%emt 0:00:13] [#]} 37. h5 $1 {[%emt 0:01:24]} Ke6 {[%emt 0:00:38]} 38. Kg3 {[%emt 0:00:22]} Rd4 {[%emt 0:02:15]} 39. a5 {[%emt 0:01:06]} bxa5 {[%emt 0:00:37]} 40. Rxa5 {[%emt 0:00:07]} Rd7 {[%emt 0:00:11]} 41. Kf4 {[%emt 0:30:27]} (41. b4 $18) 41... Rb7 {[%emt 0:30:32]} 42. Ra6+ {[%emt 0:00:42]} Kf7 {[%emt 0:00:51]} 43. Kg3 {[%emt 0:00:47]} Rxb3 {[%emt 0:00:00]} 44. Rxa7+ {[%emt 0:00:00]} Kf6 {[%emt 0:00:00]} 45. Ra6+ {[%emt 0:00:00]} Kf7 {[%emt 0:00:00]} 46. Ra4 {[%emt 0:00:00]} Rc3 {[%emt 0:00:00]} 47. Rf4+ {[%emt 0:00:00]} Kg8 {[%emt 0:00:00]} 48. Rf5 {[%emt 0:00:00]} Kh7 {[%emt 0:00:00]} 49. Re5 {[%emt 0:00:00]} Rb3 {[%emt 0:00:00]} 50. Kf4 {[%emt 0:00:00]} Kg8 {[%emt 0:00:00]} 51. Ke4 {[%emt 0:00:00]} Kf7 {[%emt 0:00:00]} 52. Rc5 {[%emt 0:00:00]} Kf6 {[%emt 0:00:00]} 53. Rc4 {[%emt 0:00:00]} Ra3 {[%emt 0:00:00]} 54. f4 {[%emt 0:00:00]} Rb3 {[%emt 0:00:00]} 55. Rc6+ {[%emt 0:00:00]} Kf7 {[%emt 0:00:00]} 56. Rd6 {[%emt 0:00:00]} Ke7 {[%emt 0:00:00]} 57. Rd3 {[%emt 0:00:00]} Rb6 {[%emt 0:00:00]} 58. Rd5 {[%emt 0:00:00]} Kf6 {[%emt 0:00:00]} 59. g5+ {[%emt 0:00:00]} hxg5 {[%emt 0:00:00]} 60. fxg5+ {[%emt 0:00:00]} Ke6 {[%emt 0:00:00] [#]} 61. Re5+ $1 {[%emt 0:00:00]} Kf7 {[%emt 0:00:00]} 62. Rc5 {[%emt 0:00:00]} Rb7 {[%emt 0:04:54]} 63. Kf5 {[%emt 0:00:00]} ({White should try} 63. Kf4 $16) 63... g6+ $1 $11 {[%emt 0:01:19] The position is equal.} 64. hxg6+ {[%emt 0:00:00]} Kg7 {[%emt 0:00:06]} 65. Rc6 {[%emt 0:02:12]} Ra7 {[%emt 0:01:04]} 66. Rf6 {[%emt 0:00:35]} Ra5+ {[%emt 0:00:13]} 67. Kg4 {[%emt 0:00:30]} Ra1 {[%emt 0:00:32]} 68. Rd6 {[%emt 0:03:09]} Rg1+ {[%emt 0:00:51]} 69. Kf4 {[%emt 0:00:14]} Rf1+ {[%emt 0:00:14]} 70. Ke5 {[%emt 0:00:10]} Re1+ {[%emt 0:00:11]} 71. Kf5 {[%emt 0:00:15]} Rf1+ {[%emt 0:00:08]} 72. Ke5 {[%emt 0:00:53]} Re1+ {[%emt 0:00:26]} 73. Kf4 {[%emt 0:00:16]} Rf1+ {[%emt 0:00:09] White really could win this.  Weighted Error Value: White=0.05 (flawless) /Black=0.09 (flawless)} 1/2-1/2

[Event "34th GER-ch Seniors-50 2022"]
[Site "Magdeburg"]
[Date "2022.08.20"]
[Round "9.6"]
[White "Wenner, Tobias"]
[Black "Lindam, Ingo"]
[Result "0-1"]
[ECO "E69"]
[WhiteElo "2099"]
[BlackElo "2130"]
[Annotator "TA"]
[PlyCount "68"]
[EventDate "2022.08.12"]
[EventType "swiss"]
[EventCountry "GER"]
[SourceTitle "playchess.com"]
[Source "ChessBase"]
[SourceQuality "1"]
[TimeControl "40/5400+30:1800+30"]

{[%evp 32,67,7,11,27,32,32,30,37,16,14,0,0,-14,0,-25,0,-84,-120,-154,-152,-220,-224,-302,-283,-300,-288,-262,-269,-264,-179,-260,-244,-281,-280,-269,-276,-29999]} 1. Nf3 {[%emt 0:00:03]} Nf6 {[%emt 0:09:27]} 2. c4 {[%emt 0:00:10]} g6 {[%emt 0:00:19]} 3. g3 {[%emt 0:00:09]} Bg7 {[%emt 0:00:03]} 4. Bg2 {[%emt 0:00:05]} O-O {[%emt 0:00:15]} 5. O-O {[%emt 0:00:08]} d6 {[%emt 0:00:10]} 6. d4 {[%emt 0:00:09]} Nbd7 {[%emt 0:00:05]} 7. Nc3 {[%emt 0:00:16]} e5 {[%emt 0:00:08]} 8. e4 {[%emt 0:00:28]} c6 {[%emt 0:00:13]} 9. h3 {[%emt 0:00:12]} Qb6 {[%emt 0:00:45]} 10. c5 {[%emt 0:00:12]} dxc5 {[%emt 0:00:09]} 11. dxe5 {[%emt 0:00:09]} Ne8 {[%emt 0:00:31]} 12. e6 {[%emt 0:00:14]} fxe6 {[%emt 0:01:00]} 13. Ng5 {[%emt 0:00:21]} Ne5 {[%emt 0:00:13]} 14. f4 {[%emt 0:00:10]} Nf7 {[%emt 0:00:11]} 15. Nxf7 {[%emt 0:00:08]} Bd4+ {[%emt 0:00:08]} 16. Kh2 {[%emt 0:00:15]} Rxf7 {[%emt 0:00:07]} 17. e5 {[%emt 0:00:09]} Qc7 {[%emt 0:00:39] E69: King's Indian: Fianchetto: 6...Nbd7 7 0-0 e5 8 e4 c6 9 h3.} 18. Ne4 {[%emt 0:00:53][%mdl 1024] White has compensation.} b6 {[%emt 0:04:38]} 19. Qc2 {[%emt 0:01:04]} Ba6 {[%emt 0:04:57] White has an edge.} 20. Rf3 {[%emt 0:00:47]} Rd8 {[%emt 0:06:08] [#]} 21. Ng5 $146 {[%emt 0:10:09][%csl LRe6,LRf7]} ({Predecessor:} 21. a4 Qd7 22. a5 Bb5 23. axb6 axb6 24. h4 h6 25. Rfa3 Kg7 26. g4 Qe7 27. g5 hxg5 28. hxg5 {1-0 (46) Nedilko,V (2400)-Golubev,M (2472) Odessa 2007}) 21... Re7 {[%emt 0:03:38]} 22. g4 {[%emt 0:10:52]} Qd7 {[%emt 0:13:50]} 23. Rg3 {[%emt 0:01:57]} Nc7 {[%emt 0:04:31]} 24. h4 {[%emt 0:11:49]} (24. Ra3 $1 $11) 24... Nd5 $36 {[%emt 0:05:52][%mdl 2048] Black has strong initiative.} 25. a3 {[%emt 0:07:01]} Rf8 {[%emt 0:08:37]} 26. Ne4 {[%emt 0:07:52] [#]} (26. Rf3 $17) 26... Ref7 $1 $19 {[%emt 0:08:04]} 27. Kh1 {[%emt 0:07:32]} Nxf4 {[%emt 0:11:26]} 28. Bxf4 {[%emt 0:04:05]} Rxf4 {[%emt 0:03:04]} 29. Nf6+ {[%emt 0:00:07]} R8xf6 {[%emt 0:00:43]} 30. exf6 {[%emt 0:00:07]} Rxf6 {[%emt 0:03:51] aiming for ...e5.} ({But not} 30... Bxf6 $2 31. Rf3 Qd6 32. Rd1 $17) 31. Rd1 {[%emt 0:04:30]} (31. Rf3 {keeps fighting.}) 31... Qc7 {[%emt 0:00:53]} 32. Rf3 {[%emt 0:01:21]} Rxf3 {[%emt 0:01:20]} 33. Bxf3 {[%emt 0:00:01]} Qg3 {[%emt 0:00:58][%csl LRf3,LRh4] ( -> ...Qh3+)} 34. Qe4 $2 {[%emt 0:00:26] [#]} (34. Qg2 $19 Qxh4+ 35. Qh2 Qxh2+ 36. Kxh2) 34... Qh3# {[%emt 0:00:13] Weighted Error Value: White=0.85/Black=0.09 (flawless)} 0-1

[Event "34th GER-ch Seniors-50 2022"]
[Site "Magdeburg"]
[Date "2022.08.20"]
[Round "9.7"]
[White "Schoengart, Ralf"]
[Black "Pirrot, Dieter"]
[Result "0-1"]
[ECO "A90"]
[WhiteElo "2039"]
[BlackElo "2328"]
[Annotator "RC"]
[PlyCount "78"]
[EventDate "2022.08.12"]
[EventType "swiss"]
[EventCountry "GER"]
[SourceTitle "playchess.com"]
[Source "ChessBase"]
[SourceQuality "1"]
[TimeControl "40/5400+30:1800+30"]

1. d4 {[%emt 0:00:06]} e6 {[%emt 0:00:19]} 2. c4 {[%emt 0:00:11]} f5 {[%emt 0:00:15]} 3. g3 {[%emt 0:00:19]} Nf6 {[%emt 0:00:16]} 4. Bg2 {[%emt 0:00:09]} d6 {[%emt 0:00:18]} 5. Nc3 {[%emt 0:00:18]} g6 {[%emt 0:00:14]} 6. Bg5 {[%emt 0:00:38]} h6 {[%emt 0:00:55]} 7. Bd2 {[%emt 0:01:51]} Bg7 {[%emt 0:00:25]} 8. Nf3 {[%emt 0:01:05]} O-O {[%emt 0:00:45]} 9. O-O {[%emt 0:00:13]} g5 {[%emt 0:06:02]} 10. Qc2 {[%emt 0:02:44]} Qe7 {[%emt 0:14:41]} 11. Rae1 {[%emt 0:01:24]} Nc6 {[%emt 0:03:31]} 12. e3 {[%emt 0:10:22]} e5 {[%emt 0:03:18]} 13. dxe5 {[%emt 0:03:58]} dxe5 {[%emt 0:00:14]} 14. Nd5 {[%emt 0:01:51]} Qf7 {[%emt 0:00:14]} 15. Nb4 {[%emt 0:01:19]} e4 {[%emt 0:07:10]} 16. Nd4 {[%emt 0:03:16]} Ne5 {[%emt 0:01:48]} 17. Nd5 {[%emt 0:03:21]} c5 {[%emt 0:12:14]} 18. Nb3 {[%emt 0:07:50]} b6 {[%emt 0:00:43]} 19. Nxf6+ {[%emt 0:03:13]} Bxf6 {[%emt 0:00:25]} 20. Bc3 {[%emt 0:00:36]} Qxc4 {[%emt 0:04:44]} 21. Nd2 {[%emt 0:05:07]} Qe6 {[%emt 0:14:50]} 22. Nxe4 {[%emt 0:18:17]} fxe4 {[%emt 0:00:17]} 23. Qxe4 {[%emt 0:00:10]} Bd7 {[%emt 0:05:41]} 24. Bxe5 {[%emt 0:05:28]} Qxe5 {[%emt 0:00:26]} 25. Qg6+ {[%emt 0:01:46]} Bg7 {[%emt 0:00:10]} 26. f4 {[%emt 0:02:23]} Qe6 {[%emt 0:06:58]} 27. Qd3 {[%emt 0:01:09]} c4 {[%emt 0:00:49]} 28. Qd2 {[%emt 0:01:20]} Bc6 {[%emt 0:00:48]} 29. e4 {[%emt 0:01:51]} c3 {[%emt 0:06:32]} 30. bxc3 {[%emt 0:00:35]} Bb5 {[%emt 0:00:36]} 31. f5 {[%emt 0:01:15]} Qe5 {[%emt 0:00:35]} 32. Rf3 {[%emt 0:00:54]} Rad8 {[%emt 0:00:53]} 33. Qc2 {[%emt 0:01:51]} g4 {[%emt 0:02:57]} 34. Rfe3 {[%emt 0:02:55]} h5 {[%emt 0:02:04]} 35. c4 {[%emt 0:03:02]} Bc6 {[%emt 0:00:14]} 36. Kh1 {[%emt 0:00:43]} Rd4 {[%emt 0:00:34]} 37. c5 {[%emt 0:01:38]} bxc5 {[%emt 0:00:37]} 38. Rc3 {[%emt 0:00:28]} Rxe4 {[%emt 0:02:40]} 39. Rxe4 {[%emt 0:05:25]} Bxe4 {[%emt 0:00:43]} 0-1

[Event "34th GER-ch Seniors-50 2022"]
[Site "Magdeburg"]
[Date "2022.08.20"]
[Round "9.8"]
[White "Roettinger, Eugen"]
[Black "Schleicher, Guido"]
[Result "1/2-1/2"]
[ECO "D02"]
[WhiteElo "2035"]
[BlackElo "2234"]
[Annotator "TA"]
[PlyCount "52"]
[EventDate "2022.08.12"]
[EventType "swiss"]
[EventCountry "GER"]
[SourceTitle "playchess.com"]
[Source "ChessBase"]
[SourceQuality "1"]
[TimeControl "40/5400+30:1800+30"]

{[%evp 10,52,0,-3,8,-2,0,-6,12,14,11,3,0,-10,-5,-8,-4,-12,0,3,10,0,0,-23,-25,-37,-26,-68,-52,-52,-52,-52,-56,-50,-45,-41,-37,-69,-52,-58,-34,-32,0,0,-8]} 1. d4 {[%emt 0:00:04]} Nf6 {[%emt 0:00:24]} 2. Bf4 {[%emt 0:00:05]} e6 {[%emt 0:00:21]} 3. e3 {[%emt 0:00:23]} d5 {[%emt 0:00:13]} 4. Nf3 {[%emt 0:00:22]} Bd6 {[%emt 0:00:21]} 5. Bg3 {[%emt 0:00:06]} O-O {[%emt 0:00:36]} 6. Nbd2 {[%emt 0:00:14]} c5 {[%emt 0:00:14] D02: 1 d4 d5 2 Nf3 sidelines, including 2...Nf6 3 g3 and 2...Nf6 3 Bf4.} 7. c3 {[%emt 0:00:04]} b6 {[%emt 0:00:18]} 8. Bd3 {[%emt 0:00:06]} Ba6 {[%emt 0:00:06]} 9. Bxa6 {[%emt 0:00:19]} Nxa6 {[%emt 0:00:06]} 10. Qe2 {[%emt 0:00:03]} Nb8 {[%emt 0:00:23]} 11. Ne5 {[%emt 0:00:04]} Qc7 {[%emt 0:02:29]} 12. f4 {[%emt 0:00:56]} Nbd7 {[%emt 0:01:53]} 13. O-O {[%emt 0:02:24]} Ne4 {[%emt 0:05:50]} 14. Nxe4 {[%emt 0:01:19]} dxe4 {[%emt 0:00:19] [#]} 15. Nc4 $146 {[%emt 0:00:28]} ({Predecessor:} 15. Qc2 Bxe5 16. fxe5 Qc6 17. Bh4 f5 18. exf6 Nxf6 19. Rf4 cxd4 20. exd4 e5 21. dxe5 {1-0 (36) Kotepalli,S (1914)-Unuk,L (2298) Chess.com INT 2019}) 15... f5 {[%emt 0:03:36]} 16. Nxd6 {[%emt 0:00:42]} Qxd6 {[%emt 0:00:26]} 17. Bh4 {[%emt 0:00:03]} cxd4 {[%emt 0:02:19]} 18. exd4 {[%emt 0:00:33]} Rac8 {[%emt 0:04:58]} 19. a4 {[%emt 0:11:53]} Rf7 {[%emt 0:13:31]} 20. Qa6 {[%emt 0:04:26][%csl LRa7,LRc8]} Qc6 {[%emt 0:10:52]} 21. Rfd1 {[%emt 0:02:36]} Nb8 {[%emt 0:02:46]} 22. Qb5 {[%emt 0:00:26]} Rd7 {[%emt 0:00:17] Against d5} 23. Qe2 {[%emt 0:10:23]} Qc4 {[%emt 0:05:51]} 24. Kf1 {[%emt 0:22:39]} Na6 {[%emt 0:01:12]} 25. Be1 {[%emt 0:05:34]} Nb8 {[%emt 0:04:58]} 26. Qxc4 {[%emt 0:11:26]} Rxc4 {[%emt 0:00:16] Weighted Error Value: White=0.07 (flawless) /Black=0.07 (flawless)} 1/2-1/2